fUST/lending_fUST_20250603
["ID","MTS","AMOUNT","RATE_DAILY","PERIOD"]
[363882051,1748908240687,-440.0,0.00016712,2]
[363882052,1748908240697,-440.0,0.00016712,2]
[363882053,1748908240706,-440.0,0.00016712,2]
[363882054,1748908240716,-440.0,0.00016712,2]
[363882055,1748908240726,-440.0,0.00016712,2]
[363882056,1748908240735,-936.63,0.00016712,2]
[363882057,1748908240744,-440.0,0.00016712,2]
[363882058,1748908240753,-359.88325781,0.00016712,2]
[363882059,1748908240763,-440.0,0.00016712,2]
[363882060,1748908240772,-440.0,0.00016712,2]
[363882061,1748908240782,-1742.08,0.00016712,2]
[363882062,1748908240791,-982.29,0.00016712,2]
[363882063,1748908240800,-420.0,0.00016712,2]
[363882064,1748908240809,-440.0,0.00016712,2]
[363882065,1748908240819,-440.0,0.00016712,2]
[363882066,1748908240828,-420.0,0.00016712,2]
[363882067,1748908240837,-1815.34,0.00016712,2]
[363882068,1748908240848,-352.87,0.00016712,2]
[363882069,1748908240857,-440.0,0.00016712,2]
[363882070,1748908240866,-440.0,0.00016712,2]
[363882071,1748908240876,-440.0,0.00016712,2]
[363882073,1748908240885,-1150.29,0.00016712,2]
[363882074,1748908240896,-440.0,0.00016712,2]
[363882075,1748908240905,-440.0,0.00016712,2]
[363882076,1748908240914,-1357.83,0.00016712,2]
[363882077,1748908240923,-500.0,0.00016712,2]
[363882079,1748908240933,-485.4,0.00016712,2]
[363882080,1748908240942,-440.0,0.00016712,2]
[363882081,1748908240952,-440.0,0.00016712,2]
[363882082,1748908240961,-702.48,0.00016712,2]
[363882083,1748908240970,-479.40649766,0.00016712,2]
[363882084,1748908240980,-440.0,0.00016712,2]
[363882085,1748908240989,-440.0,0.00016712,2]
[363882086,1748908240999,-440.0,0.00016712,2]
[363882087,1748908241008,-440.0,0.00016712,2]
[363882088,1748908241018,-440.0,0.00016712,2]
[363882089,1748908241027,-440.0,0.00016712,2]
[363882090,1748908241039,-505.39,0.00016712,2]
[363882091,1748908241050,-453.68,0.00016712,2]
[363882092,1748908241059,-440.0,0.00016712,2]
[363882093,1748908241069,-420.0,0.00016712,2]
[363882094,1748908241079,-440.0,0.00016712,2]
[363882095,1748908241089,-440.0,0.00016712,2]
[363882096,1748908241099,-440.0,0.00016712,2]
[363882097,1748908241109,-440.0,0.00016712,2]
[363882098,1748908241120,-359.68876216,0.00016712,2]
[363882099,1748908241130,-440.0,0.00016712,2]
[363882100,1748908241139,-440.0,0.00016712,2]
[363882101,1748908241149,-440.0,0.00016712,2]
[363882102,1748908241158,-440.0,0.00016712,2]
[363882103,1748908241168,-440.0,0.00016712,2]
[363882104,1748908241177,-440.0,0.00016712,2]
[363882105,1748908241187,-584.41291089,0.00016712,2]
[363882106,1748908241196,-760.76,0.00016712,2]
[363882107,1748908241207,-440.0,0.00016712,2]
[363882108,1748908241216,-1684.5,0.00016712,2]
[363882109,1748908241225,-440.0,0.00016712,2]
[363882110,1748908241234,-440.0,0.00016712,2]
[363882111,1748908241243,-597.33,0.00016712,2]
[363882112,1748908241251,-420.0,0.00016712,2]
[363882113,1748908241261,-1420.11,0.00016712,2]
[363882114,1748908241270,-440.0,0.00016712,2]
[363882115,1748908241279,-440.0,0.00016712,2]
[363882116,1748908241289,-420.0,0.00016712,2]
[363882117,1748908241298,-440.0,0.00016712,2]
[363882118,1748908241307,-420.0,0.00016712,2]
[363882119,1748908241316,-440.0,0.00016712,2]
[363882120,1748908241325,-440.0,0.00016712,2]
[363882121,1748908241333,-440.0,0.00016712,2]
[363882122,1748908241342,-440.0,0.00016712,2]
[363882123,1748908241352,-440.0,0.00016712,2]
[363882124,1748908241361,-440.0,0.00016712,2]
[363882125,1748908241371,-440.0,0.00016712,2]
[363882126,1748908241380,-440.0,0.00016712,2]
[363882127,1748908241389,-440.0,0.00016712,2]
[363882128,1748908241398,-440.0,0.00016712,2]
[363882129,1748908241409,-440.0,0.00016712,2]
[363882130,1748908241418,-440.0,0.00016712,2]
[363882131,1748908241426,-420.0,0.00016712,2]
[363882132,1748908241435,-440.0,0.00016712,2]
[363882133,1748908241445,-410.0,0.00016986,2]
[363882134,1748908241455,-440.0,0.00016986,2]
[363882135,1748908241464,-440.0,0.00016986,2]
[363882136,1748908241473,-440.0,0.00016986,2]
[363882137,1748908241482,-218.14929117,0.00016986,2]
[363882138,1748908241491,-440.0,0.00016986,2]
[363882139,1748908241500,-440.0,0.00016986,2]
[363882140,1748908241509,-420.0,0.00016986,2]
[363882141,1748908241519,-410.0,0.00016986,2]
[363882142,1748908241528,-440.0,0.00016986,2]
[363882143,1748908241537,-440.0,0.00016986,2]
[363882144,1748908241546,-380.0,0.00016986,2]
[363882145,1748908241555,-440.0,0.00016986,2]
[363882146,1748908241564,-440.0,0.00016986,2]
[363882147,1748908241574,-440.0,0.00016986,2]
[363882148,1748908241583,-410.0,0.00016986,2]
[363882149,1748908241592,-480.0,0.00016986,2]
[363882150,1748908241603,-410.0,0.00016986,2]
[363882151,1748908241612,-160.0,0.00016986,2]
[363882152,1748908241621,-440.0,0.00016986,2]
[363882153,1748908241630,-440.0,0.00016986,2]
[363882154,1748908241640,-440.0,0.00016986,2]
[363882155,1748908241649,-440.0,0.00016986,2]
[363882156,1748908241658,-440.0,0.00016986,2]
[363882157,1748908241667,-440.0,0.00016986,2]
[363882158,1748908241676,-324.24726365,0.00016986,2]
[363882159,1748908241685,-440.0,0.00016986,2]
[363882160,1748908241695,-440.0,0.00016986,2]
[363882161,1748908241704,-440.0,0.00016986,2]
[363882162,1748908241713,-936.63,0.00016986,2]
[363882163,1748908241722,-440.0,0.00016986,2]
[363882164,1748908241731,-440.0,0.00016986,2]
[363882165,1748908241740,-410.0,0.00016986,2]
[363882166,1748908241749,-1742.08,0.00016986,2]
[363882167,1748908241758,-982.29,0.00016986,2]
[363882168,1748908241768,-410.0,0.00016986,2]
[363882169,1748908241778,-410.0,0.00016986,2]
[363882170,1748908241787,-1815.34,0.00016986,2]
[363882171,1748908241796,-440.0,0.00016986,2]
[363882172,1748908241805,-380.0,0.00016986,2]
[363882173,1748908241814,-340.52284534,0.00016986,2]
[363882174,1748908241823,-1150.29,0.00016986,2]
[363882175,1748908241832,-440.0,0.00016986,2]
[363882176,1748908241841,-440.0,0.00016986,2]
[363882177,1748908241852,-1357.83,0.00016986,2]
[363882178,1748908241861,-485.4,0.00016986,2]
[363882179,1748908241870,-410.0,0.00016986,2]
[363882180,1748908241879,-440.0,0.00016986,2]
[363882181,1748908241888,-702.48,0.00016986,2]
[363882182,1748908241897,-440.0,0.00016986,2]
[363882183,1748908241906,-440.0,0.00016986,2]
[363882184,1748908241915,-440.0,0.00016986,2]
[363882185,1748908241924,-440.0,0.00016986,2]
[363882186,1748908241933,-440.0,0.00016986,2]
[363882187,1748908241942,-380.0,0.00016986,2]
[363882188,1748908241951,-505.39,0.00016986,2]
[363882189,1748908241960,-440.0,0.00016986,2]
[363882190,1748908241970,-440.0,0.00016986,2]
[363882191,1748908241979,-440.0,0.00016986,2]
[363882192,1748908241987,-410.0,0.00016986,2]
[363882193,1748908241997,-440.0,0.00016986,2]
[363882194,1748908242006,-490.78742543,0.00016986,2]
[363882195,1748908242016,-440.0,0.00016986,2]
[363882196,1748908242025,-440.0,0.00016986,2]
[363882197,1748908242034,-410.0,0.00016986,2]
[363882198,1748908242044,-440.0,0.00016986,2]
[363882199,1748908242053,-440.0,0.00016986,2]
[363882200,1748908242062,-760.76,0.00016986,2]
[363882201,1748908242072,-336.45,0.00016986,2]
[363882202,1748908242081,-1684.5,0.00016986,2]
[363882203,1748908242091,-440.0,0.00016986,2]
[363882204,1748908242102,-440.0,0.00016986,2]
[363882205,1748908242111,-597.33,0.00016986,2]
[363882206,1748908242123,-1420.11,0.00016986,2]
[363882207,1748908242132,-440.0,0.00016986,2]
[363882208,1748908242142,-410.0,0.00016986,2]
[363882209,1748908242150,-440.0,0.00016986,2]
[363882210,1748908242160,-440.0,0.00016986,2]
[363882211,1748908242170,-420.0,0.00016986,2]
[363882212,1748908242180,-440.0,0.00016986,2]
[363882213,1748908242189,-440.0,0.00016986,2]
[363882214,1748908242199,-440.0,0.00016986,2]
[363882215,1748908242208,-440.0,0.00016986,2]
[363882216,1748908242217,-440.0,0.00016986,2]
[363882217,1748908242227,-440.0,0.00016986,2]
[363882218,1748908242237,-440.0,0.00016986,2]
[363882219,1748908242247,-440.0,0.00016986,2]
[363882220,1748908242257,-332.79500161,0.00016986,2]
[363882221,1748908242266,-440.0,0.00016986,2]
[363882222,1748908242276,-440.0,0.00016986,2]
[363882223,1748908242286,-440.0,0.0001726,2]
[363882224,1748908242296,-440.0,0.0001726,2]
[363882225,1748908242306,-440.0,0.0001726,2]
[363882226,1748908242316,-530.46,0.0001726,2]
[363882227,1748908242326,-440.0,0.0001726,2]
[363882228,1748908242336,-440.0,0.0001726,2]
[363882229,1748908242346,-440.0,0.0001726,2]
[363882230,1748908242356,-440.0,0.0001726,2]
[363882231,1748908242366,-440.0,0.0001726,2]
[363882232,1748908242375,-440.0,0.0001726,2]
[363882233,1748908242385,-440.0,0.0001726,2]
[363882234,1748908242396,-440.0,0.0001726,2]
[363882235,1748908242406,-440.0,0.0001726,2]
[363882236,1748908242416,-440.0,0.0001726,2]
[363882237,1748908242425,-440.0,0.0001726,2]
[363882238,1748908242436,-440.0,0.0001726,2]
[363882239,1748908242445,-440.0,0.0001726,2]
[363882240,1748908242455,-440.0,0.0001726,2]
[363882241,1748908242467,-440.0,0.0001726,2]
[363882242,1748908242479,-440.0,0.0001726,2]
[363882243,1748908242489,-936.63,0.0001726,2]
[363882244,1748908242610,-440.0,0.0001726,2]
[363882245,1748908242621,-1742.08,0.0001726,2]
[363882246,1748908242631,-982.29,0.0001726,2]
[363882247,1748908242641,-1815.34,0.0001726,2]
[363882248,1748908242651,-357.25,0.0001726,2]
[363882249,1748908242661,-1150.29,0.0001726,2]
[363882250,1748908242671,-440.0,0.0001726,2]
[363882251,1748908242680,-440.0,0.0001726,2]
[363882252,1748908242690,-1357.83,0.0001726,2]
[363882253,1748908242700,-485.4,0.0001726,2]
[363882254,1748908242709,-440.0,0.0001726,2]
[363882255,1748908242719,-702.48,0.0001726,2]
[363882256,1748908242729,-440.0,0.0001726,2]
[363882257,1748908242738,-440.0,0.0001726,2]
[363882258,1748908242749,-440.0,0.0001726,2]
[363882259,1748908242758,-440.0,0.0001726,2]
[363882260,1748908242768,-440.0,0.0001726,2]
[363882261,1748908242778,-505.39,0.0001726,2]
[363882263,1748908242787,-440.0,0.0001726,2]
[363882265,1748908242797,-440.0,0.0001726,2]
[363882266,1748908242806,-440.0,0.0001726,2]
[363882267,1748908242815,-440.0,0.0001726,2]
[363882268,1748908242825,-440.0,0.0001726,2]
[363882269,1748908242834,-400.0,0.0001726,2]
[363882270,1748908242843,-348.17326791,0.0001726,2]
[363882271,1748908242854,-440.0,0.0001726,2]
[363882272,1748908242864,-1684.5,0.0001726,2]
[363882273,1748908242874,-760.76,0.0001726,2]
[363882274,1748908242883,-440.0,0.0001726,2]
[363882275,1748908242893,-440.0,0.0001726,2]
[363882276,1748908242903,-597.33,0.0001726,2]
[363882277,1748908242912,-1420.11,0.0001726,2]
[363882279,1748908242922,-440.0,0.0001726,2]
[363882280,1748908242931,-440.0,0.0001726,2]
[363882281,1748908242940,-440.0,0.0001726,2]
[363882282,1748908242950,-440.0,0.0001726,2]
[363882283,1748908242959,-440.0,0.0001726,2]
[363882284,1748908242969,-360.0,0.0001726,2]
[363882285,1748908242979,-410.0,0.0001726,2]
[363882286,1748908242988,-440.0,0.0001726,2]
[363882287,1748908242997,-440.0,0.0001726,2]
[363882288,1748908243007,-440.0,0.0001726,2]
[363882289,1748908243016,-440.0,0.0001726,2]
[363882290,1748908243026,-440.0,0.0001726,2]
[363882291,1748908243035,-440.0,0.0001726,2]
[363882292,1748908243049,-505.30963114,0.00017521,2]
[363882293,1748908243058,-157.472922,0.00017534,2]
[363882294,1748908243068,-440.0,0.00017534,2]
[363882295,1748908243077,-440.0,0.00017534,2]
[363882296,1748908243087,-440.0,0.00017534,2]
[363882297,1748908243097,-440.0,0.00017534,2]
[363882298,1748908243107,-440.0,0.00017534,2]
[363882299,1748908243116,-440.0,0.00017534,2]
[363882300,1748908243125,-440.0,0.00017534,2]
[363882301,1748908243136,-540.31,0.00017534,2]
[363882302,1748908243146,-440.0,0.00017534,2]
[363882303,1748908243155,-440.0,0.00017534,2]
[363882304,1748908243164,-440.0,0.00017534,2]
[363882305,1748908243174,-440.0,0.00017534,2]
[363882306,1748908243183,-440.0,0.00017534,2]
[363882307,1748908243192,-440.0,0.00017534,2]
[363882308,1748908243202,-440.0,0.00017534,2]
[363882309,1748908243211,-528.44,0.00017534,2]
[363882310,1748908243220,-400.0,0.00017534,2]
[363882311,1748908243230,-360.0,0.00017534,2]
[363882312,1748908243239,-463.51486158,0.00017534,2]
[363882313,1748908243248,-936.63,0.00017534,2]
[363882314,1748908243257,-440.0,0.00017534,2]
[363882315,1748908243266,-1742.08,0.00017534,2]
[363882316,1748908243275,-982.29,0.00017534,2]
[363882317,1748908243285,-1815.34,0.00017534,2]
[363882318,1748908243295,-1150.29,0.00017534,2]
[363882319,1748908243304,-440.0,0.00017534,2]
[363882320,1748908243314,-1357.83,0.00017534,2]
[363882321,1748908243325,-485.4,0.00017534,2]
[363882322,1748908243335,-434.42,0.00017534,2]
[363882323,1748908243344,-702.48,0.00017534,2]
[363882324,1748908243356,-440.0,0.00017534,2]
[363882325,1748908243366,-440.0,0.00017534,2]
[363882326,1748908243376,-440.0,0.00017534,2]
[363882327,1748908243386,-440.0,0.00017534,2]
[363882328,1748908243399,-440.0,0.00017534,2]
[363882329,1748908243410,-505.39,0.00017534,2]
[363882330,1748908243420,-440.0,0.00017534,2]
[363882331,1748908243430,-400.0,0.00017534,2]
[363882332,1748908243439,-210.94588292,0.00017534,2]
[363882333,1748908243449,-440.0,0.00017534,2]
[363882334,1748908243458,-440.0,0.00017534,2]
[363882335,1748908243468,-365.24,0.00017534,2]
[363882336,1748908243478,-1684.5,0.00017534,2]
[363882337,1748908243488,-760.76,0.00017534,2]
[363882338,1748908243497,-400.0,0.00017534,2]
[363882339,1748908243507,-440.0,0.00017534,2]
[363882340,1748908243517,-597.33,0.00017534,2]
[363882341,1748908243527,-1420.11,0.00017534,2]
[363882342,1748908243537,-440.0,0.00017534,2]
[363882343,1748908243547,-440.0,0.00017534,2]
[363882344,1748908243556,-440.0,0.00017534,2]
[363882345,1748908243567,-440.0,0.00017534,2]
[363882346,1748908243577,-440.0,0.00017534,2]
[363882347,1748908243586,-440.0,0.00017534,2]
[363882348,1748908243596,-440.0,0.00017534,2]
[363882349,1748908243606,-440.0,0.00017534,2]
[363882350,1748908243615,-440.0,0.00017534,2]
[363882351,1748908243625,-440.0,0.00017534,2]
[363882352,1748908243635,-440.0,0.00017534,2]
[363882353,1748908243644,-513.19229648,0.00017566,2]
[363882354,1748908243654,-440.0,0.00017808,2]
[363882355,1748908243664,-440.0,0.00017808,2]
[363882356,1748908243673,-440.0,0.00017808,2]
[363882357,1748908243683,-440.0,0.00017808,2]
[363882358,1748908243693,-258.75720288,0.00017808,2]
[363882359,1748908243703,-399.84,0.00017808,2]
[363882360,1748908243716,-380.0,0.00017808,2]
[363882361,1748908243725,-350.0,0.00017808,2]
[363882362,1748908243735,-440.0,0.00017808,2]
[363882363,1748908243745,-440.0,0.00017808,2]
[363882364,1748908243755,-440.0,0.00017808,2]
[363882365,1748908243764,-440.0,0.00017808,2]
[363882366,1748908243773,-440.0,0.00017808,2]
[363882367,1748908243782,-272.78637685,0.00017808,2]
[363882368,1748908243792,-936.63,0.00017808,2]
[363882369,1748908243801,-440.0,0.00017808,2]
[363882370,1748908243811,-1742.08,0.00017808,2]
[363882371,1748908243820,-982.29,0.00017808,2]
[363882372,1748908243829,-1815.34,0.00017808,2]
[363882373,1748908243838,-1150.29,0.00017808,2]
[363882374,1748908243848,-440.0,0.00017808,2]
[363882375,1748908243858,-1357.83,0.00017808,2]
[363882376,1748908243867,-485.4,0.00017808,2]
[363882377,1748908243877,-702.48,0.00017808,2]
[363882378,1748908243887,-440.0,0.00017808,2]
[363882379,1748908243896,-440.0,0.00017808,2]
[363882380,1748908243906,-202.23,0.00017808,2]
[363882381,1748908243916,-440.0,0.00017808,2]
[363882382,1748908243926,-440.0,0.00017808,2]
[363882383,1748908243935,-505.39,0.00017808,2]
[363882384,1748908243946,-309.41,0.00017808,2]
[363882385,1748908243955,-440.0,0.00017808,2]
[363882386,1748908243966,-440.0,0.00017808,2]
[363882387,1748908243975,-1684.5,0.00017808,2]
[363882388,1748908243985,-760.76,0.00017808,2]
[363882389,1748908243995,-440.0,0.00017808,2]
[363882390,1748908244005,-597.33,0.00017808,2]
[363882391,1748908244015,-1420.11,0.00017808,2]
[363882392,1748908244024,-440.0,0.00017808,2]
[363882393,1748908244034,-440.0,0.00017808,2]
[363882394,1748908244045,-440.0,0.00017808,2]
[363882395,1748908244054,-440.0,0.00017808,2]
[363882396,1748908244064,-440.0,0.00017808,2]
[363882397,1748908244073,-440.0,0.00017808,2]
[363882398,1748908244084,-347.92,0.00017808,2]
[363882399,1748908244094,-440.0,0.00017808,2]
[363882400,1748908244104,-440.0,0.00017808,2]
[363882401,1748908244114,-440.0,0.00017808,2]
[363882402,1748908244126,-440.0,0.00017808,2]
[363882403,1748908244136,-743.58558874,0.000179,2]
[363882404,1748908244146,-269.0,0.00017962,2]
[363882405,1748908244155,-181.9,0.00018081,2]
[363882406,1748908244165,-181.9,0.00018081,2]
[363882407,1748908244178,-181.9,0.00018081,2]
[363882408,1748908244189,-429.31,0.00018082,2]
[363882409,1748908244199,-440.0,0.00018082,2]
[363882410,1748908244210,-440.0,0.00018082,2]
[363882411,1748908244220,-440.0,0.00018082,2]
[363882412,1748908244231,-440.0,0.00018082,2]
[363882413,1748908244241,-440.0,0.00018082,2]
[363882414,1748908244251,-440.0,0.00018082,2]
[363882415,1748908244261,-440.0,0.00018082,2]
[363882416,1748908244270,-440.0,0.00018082,2]
[363882417,1748908244278,-936.63,0.00018082,2]
[363882418,1748908244287,-440.0,0.00018082,2]
[363882419,1748908244298,-1742.08,0.00018082,2]
[363882420,1748908244309,-982.29,0.00018082,2]
[363882421,1748908244321,-1815.34,0.00018082,2]
[363882422,1748908244330,-1150.29,0.00018082,2]
[363882423,1748908244339,-440.0,0.00018082,2]
[363882424,1748908244348,-1357.83,0.00018082,2]
[363882425,1748908244358,-485.4,0.00018082,2]
[363882426,1748908244368,-702.48,0.00018082,2]
[363882427,1748908244378,-440.0,0.00018082,2]
[363882428,1748908244389,-440.0,0.00018082,2]
[363882429,1748908244399,-440.0,0.00018082,2]
[363882430,1748908244408,-440.0,0.00018082,2]
[363882431,1748908244418,-505.39,0.00018082,2]
[363882432,1748908244428,-376.16,0.00018082,2]
[363882433,1748908244437,-440.0,0.00018082,2]
[363882434,1748908244447,-1684.5,0.00018082,2]
[363882435,1748908244456,-760.76,0.00018082,2]
[363882436,1748908244465,-440.0,0.00018082,2]
[363882437,1748908244475,-597.33,0.00018082,2]
[363882438,1748908244484,-1420.11,0.00018082,2]
[363882439,1748908244494,-440.0,0.00018082,2]
[363882440,1748908244503,-440.0,0.00018082,2]
[363882441,1748908244512,-440.0,0.00018082,2]
[363882442,1748908244523,-440.0,0.00018082,2]
[363882443,1748908244532,-440.0,0.00018082,2]
[363882444,1748908244542,-440.0,0.00018082,2]
[363882445,1748908244552,-440.0,0.00018082,2]
[363882446,1748908244561,-440.0,0.00018082,2]
[363882447,1748908244571,-440.0,0.00018082,2]
[363882448,1748908244580,-440.0,0.00018082,2]
[363882449,1748908244590,-743.58558857,0.00018107,2]
[363882450,1748908244599,-423.56953423,0.00018155,2]
[363882451,1748908244609,-160.0,0.00018155,2]
[363882452,1748908244619,-842.5625,0.00018155,2]
[363882453,1748908244628,-160.0,0.00018155,2]
[363882454,1748908244638,-229.39799938,0.00018155,2]
[363882455,1748908244647,-160.0,0.00018155,2]
[363882456,1748908244657,-160.0,0.00018155,2]
[363882457,1748908244666,-212.83419937,0.00018155,2]
[363882458,1748908244676,-12668.79298183,0.00018156,2]
[363882459,1748908244685,-743.58558857,0.00018314,2]
[363882460,1748908244694,-440.0,0.00018356,2]
[363882461,1748908244704,-440.0,0.00018356,2]
[363882462,1748908244713,-440.0,0.00018356,2]
[363882463,1748908244723,-440.0,0.00018356,2]
[363882464,1748908244732,-440.0,0.00018356,2]
[363882465,1748908244742,-440.0,0.00018356,2]
[363882466,1748908244751,-440.0,0.00018356,2]
[363882467,1748908244761,-440.0,0.00018356,2]
[363882468,1748908244771,-936.63,0.00018356,2]
[363882469,1748908244780,-440.0,0.00018356,2]
[363882470,1748908244789,-1742.08,0.00018356,2]
[363882471,1748908244799,-982.29,0.00018356,2]
[363882472,1748908244808,-1815.34,0.00018356,2]
[363882473,1748908244818,-1150.29,0.00018356,2]
[363882474,1748908244827,-440.0,0.00018356,2]
[363882475,1748908244836,-1357.83,0.00018356,2]
[363882476,1748908244845,-485.4,0.00018356,2]
[363882477,1748908244855,-702.48,0.00018356,2]
[363882478,1748908244865,-440.0,0.00018356,2]
[363882479,1748908244875,-440.0,0.00018356,2]
[363882480,1748908244884,-440.0,0.00018356,2]
[363882481,1748908244893,-440.0,0.00018356,2]
[363882482,1748908244903,-505.39,0.00018356,2]
[363882483,1748908244912,-440.0,0.00018356,2]
[363882484,1748908244921,-1684.5,0.00018356,2]
[363882485,1748908244931,-760.76,0.00018356,2]
[363882486,1748908244941,-568.28,0.00018356,2]
[363882487,1748908244950,-597.33,0.00018356,2]
[363882488,1748908244960,-1420.11,0.00018356,2]
[363882489,1748908244970,-440.0,0.00018356,2]
[363882490,1748908244980,-440.0,0.00018356,2]
[363882491,1748908244990,-440.0,0.00018356,2]
[363882492,1748908245000,-440.0,0.00018356,2]
[363882493,1748908245010,-440.0,0.00018356,2]
[363882494,1748908245020,-440.0,0.00018356,2]
[363882495,1748908245030,-440.0,0.00018356,2]
[363882496,1748908245040,-440.0,0.00018356,2]
[363882497,1748908245049,-440.0,0.00018356,2]
[363882498,1748908245062,-440.0,0.00018356,2]
[363882499,1748908245071,-743.58558857,0.00018521,2]
[363882500,1748908245081,-440.0,0.0001863,2]
[363882501,1748908245091,-440.0,0.0001863,2]
[363882502,1748908245101,-440.0,0.0001863,2]
[363882503,1748908245111,-440.0,0.0001863,2]
[363882504,1748908245121,-440.0,0.0001863,2]
[363882505,1748908245133,-412.27009233,0.0001863,2]
[363882506,1748908245144,-440.0,0.0001863,2]
[363882507,1748908245156,-440.0,0.0001863,2]
[363882508,1748908245165,-936.63,0.0001863,2]
[363882509,1748908245175,-440.0,0.0001863,2]
[363882510,1748908245184,-1742.08,0.0001863,2]
[363882511,1748908245193,-982.29,0.0001863,2]
[363882512,1748908245204,-1815.34,0.0001863,2]
[363882513,1748908245213,-1150.29,0.0001863,2]
[363882514,1748908245223,-440.0,0.0001863,2]
[363882515,1748908245232,-1357.83,0.0001863,2]
[363882516,1748908245241,-485.4,0.0001863,2]
[363882517,1748908245251,-702.48,0.0001863,2]
[363882518,1748908245260,-440.0,0.0001863,2]
[363882519,1748908245370,-440.0,0.0001863,2]
[363882520,1748908245381,-440.0,0.0001863,2]
[363882521,1748908245391,-270.27090152,0.0001863,2]
[363882522,1748908245401,-505.39,0.0001863,2]
[363882523,1748908245411,-440.0,0.0001863,2]
[363882524,1748908245420,-1684.5,0.0001863,2]
[363882525,1748908245430,-760.76,0.0001863,2]
[363882526,1748908245439,-597.33,0.0001863,2]
[363882527,1748908245449,-1420.11,0.0001863,2]
[363882528,1748908245458,-440.0,0.0001863,2]
[363882529,1748908245469,-440.0,0.0001863,2]
[363882530,1748908245478,-440.0,0.0001863,2]
[363882531,1748908245488,-440.0,0.0001863,2]
[363882532,1748908245497,-440.0,0.0001863,2]
[363882533,1748908245507,-440.0,0.0001863,2]
[363882534,1748908245517,-440.0,0.0001863,2]
[363882535,1748908245527,-440.0,0.0001863,2]
[363882536,1748908245536,-440.0,0.0001863,2]
[363882537,1748908245545,-440.0,0.0001863,2]
[363882538,1748908245555,-1000.0,0.00018685,2]
[363882539,1748908245565,-1000.0,0.00018685,2]
[363882540,1748908245574,-1000.0,0.00018685,7]
[363882541,1748908245584,-1000.0,0.00018685,7]
[363882542,1748908245594,-743.58558857,0.00018728,2]
[363882543,1748908245605,-1584.02548989,0.000189,2]
[363882544,1748908245614,-440.0,0.00018904,2]
[363882545,1748908245624,-440.0,0.00018904,2]
[363882546,1748908245633,-440.0,0.00018904,2]
[363882547,1748908245642,-440.0,0.00018904,2]
[363882548,1748908245652,-440.0,0.00018904,2]
[363882549,1748908245662,-440.0,0.00018904,2]
[363882550,1748908245671,-440.0,0.00018904,2]
[363882551,1748908245681,-936.63,0.00018904,2]
[363882552,1748908245691,-440.0,0.00018904,2]
[363882553,1748908245700,-1742.08,0.00018904,2]
[363882554,1748908245709,-982.29,0.00018904,2]
[363882555,1748908245718,-1815.34,0.00018904,2]